bitfinex/quotes_ETHUSD_20230110
["timestamp","ask_amount","ask_price","bid_price","bid_amount"]
[1673389177368,86.6279643,1338.7,1338.6,9.44e-06]
[1673389178423,89.96354988,1338.7,1338.6,9.44e-06]
[1673389178755,89.96352367,1338.7,1338.6,9.44e-06]
[1673389180223,86.6279643,1338.7,1338.6,9.44e-06]
[1673389181307,89.96346739,1338.7,1338.6,9.44e-06]
[1673389181520,86.6279643,1338.7,1338.6,9.44e-06]
[1673389182202,90.52505884,1338.7,1338.5,0.12708198]
[1673389182382,39.65207483,1338.6,1338.5,0.12708198]
[1673389182593,58.73632812,1338.6,1338.5,0.12708198]
[1673389182801,59.48844713,1338.6,1338.5,0.12708198]
[1673389183150,71.48816586,1338.6,1338.5,0.12708198]
[1673389184412,49.07669586,1338.6,1338.5,0.12708198]
[1673389184723,71.48816586,1338.6,1338.5,0.12708198]
[1673389185357,79.48816586,1338.6,1338.5,0.12708198]
[1673389187193,78.73604685,1338.6,1338.5,0.12708198]
[1673389187368,79.48816586,1338.6,1338.5,0.12708198]
[1673389188516,75.61829986,1338.6,1338.5,0.12708198]
[1673389188883,67.77229986,1338.6,1338.5,0.12708198]
[1673389189028,32.86156129,1338.6,1338.5,0.12708198]
[1673389189240,36.99673256,1338.6,1338.5,0.12708198]
[1673389190124,37.74885157,1338.6,1338.5,0.12708198]
[1673389190520,30.27836157,1338.6,1338.5,0.12708198]
[1673389191993,23.03787157,1338.6,1338.5,0.12708198]
[1673389192625,15.56738157,1338.6,1338.5,0.12708198]
[1673389193816,23.03787157,1338.6,1338.5,0.12708198]
[1673389195173,23.04063087,1338.6,1338.5,0.12708198]
[1673389195398,20.25836562,1338.6,1338.5,0.12708198]
[1673389196545,27.72885562,1338.6,1338.5,0.12708198]
[1673389196758,22.72885562,1338.6,1338.5,0.12708198]
[1673389196963,27.72885562,1338.6,1338.5,0.12708198]
[1673389197172,30.51136546,1338.6,1338.5,0.12708198]
[1673389197491,20.25836562,1338.6,1338.5,0.12708198]
[1673389197804,27.72885562,1338.6,1338.5,0.12708198]
[1673389197982,38.53466435,1338.6,1338.5,0.12708198]
[1673389198538,38.04912079,1338.6,1338.5,0.12708198]
[1673389199752,45.51961079,1338.6,1338.5,0.12708198]
[1673389199958,31.06417435,1338.6,1338.5,0.12708198]
[1673389200173,23.59368435,1338.6,1338.5,0.12708198]
[1673389202289,15.5721145,1338.6,1338.5,0.12492316]
[1673389202501,8.81747087,1338.6,1338.5,0.12492316]
[1673389202729,6.03323199,1338.6,1338.5,0.12492316]
[1673389203690,9.03323199,1338.6,1338.5,0.12492316]
[1673389204064,10.70394841,1338.6,1338.5,0.12492316]
[1673389205137,5.79229501,1338.6,1338.5,9.12486039]
[1673389205326,0.00809597,1338.6,1338.5,24.13294039]
[1673389205543,15.67881239,1338.7,1338.6,0.00809596]
[1673389205756,15.67881239,1338.7,1338.6,17.3631796]
[1673389206009,15.67881239,1338.7,1338.6,17.4291796]
[1673389206010,15.68081239,1338.7,1338.6,17.4291796]
[1673389206318,14.01009597,1338.7,1338.6,24.8996696]
[1673389208604,14.01009597,1338.7,1338.6,2.4881996]
[1673389208802,14.00809597,1338.7,1338.6,0.00809596]
[1673389211146,21.47802597,1338.7,1338.6,0.00809596]
[1673389211352,14.00809597,1338.7,1338.6,0.00809596]
[1673389217914,14.00809597,1338.7,1338.6,7.47858596]
[1673389218196,14.01009597,1338.7,1338.6,15.01507596]
[1673389218394,14.01009597,1338.7,1338.6,17.27758922]
[1673389219357,0.01009597,1338.7,1338.6,17.27758922]
[1673389219535,4.67071642,1338.8,1338.6,17.27758922]
[1673389220157,26.87568777,1338.9,1338.6,24.74807922]
[1673389220364,30.61934841,1338.9,1338.6,24.74807922]
[1673389220582,30.61934841,1338.9,1338.7,2.47480792]
[1673389221359,30.61934841,1338.9,1338.7,9.94468792]
[1673389221521,30.61934841,1338.9,1338.7,17.48061792]
[1673389222408,30.61934841,1338.9,1338.7,10.01068792]
[1673389224315,30.61934841,1338.9,1338.7,17.48061792]
[1673389224530,30.61934841,1338.9,1338.7,10.01068792]
[1673389224845,1.67071642,1338.8,1338.7,2.54080792]
[1673389225058,1.67071642,1338.8,1338.6,15.01430596]
[1673389225271,14.0,1338.7,1338.6,7.54416596]
[1673389225480,14.01009597,1338.7,1338.6,15.01465596]
[1673389226093,14.01009597,1338.7,1338.6,17.27570687]
[1673389227879,0.01009597,1338.7,1338.6,17.27570687]
[1673389228090,1.67071642,1338.8,1338.6,24.74619687]
[1673389229257,26.87568777,1338.9,1338.6,24.74619687]
[1673389229607,1.67071642,1338.8,1338.7,2.47461969]
[1673389230354,1.67071642,1338.8,1338.7,9.94454969]
[1673389230666,1.67071642,1338.8,1338.7,10.01054969]
[1673389233028,1.67071642,1338.8,1338.7,2.54061969]
[1673389233273,1.67071642,1338.8,1338.7,2.47461969]
[1673389233688,1.73481239,1338.9,1338.7,24.88440969]
[1673389233903,1.67071642,1338.9,1338.8,9.95781097]
[1673389234079,1.67071642,1338.9,1338.8,10.02381097]
[1673389236862,1.67071642,1338.9,1338.8,17.49318097]
[1673389237031,18.73481239,1339.0,1338.8,24.96255097]
[1673389237243,16.23757135,1339.0,1338.9,9.9650651]
[1673389237472,17.90472085,1339.0,1338.9,10.0310651]
[1673389237871,17.90472085,1339.0,1338.9,10.02895221]
[1673389237872,1.67724547,1339.0,1338.9,10.02895221]
[1673389238081,1.6671495,1339.0,1338.9,10.02895221]
[1673389241482,1.6671495,1339.0,1338.9,2.56014221]
[1673389241697,1.6671495,1339.0,1338.9,9.96295221]
[1673389242041,1.6671495,1339.0,1338.9,10.02895221]
[1673389242253,3.89462488,1339.0,1338.9,10.02895221]
[1673389242411,1.6671495,1339.0,1338.9,10.02895221]
[1673389242618,1.6671495,1339.0,1338.9,2.56014221]
[1673389242883,1.6671495,1339.0,1338.9,2.49414221]
[1673389243057,3.89462488,1339.0,1338.9,9.96295221]
[1673389243255,1.6671495,1339.0,1338.9,10.02895221]
[1673389243465,3.89462488,1339.0,1338.9,10.02895221]
[1673389245684,3.89462488,1339.0,1338.9,2.56014221]
[1673389246027,3.89462488,1339.0,1338.9,2.49414221]
[1673389246238,3.89462488,1339.0,1338.9,9.96295221]
[1673389246398,3.89462488,1339.0,1338.9,2.56014221]
[1673389246606,3.89462488,1339.0,1338.8,22.4733]
[1673389247870,1.6671495,1339.0,1338.8,22.4733]
[1673389248082,3.89462488,1339.0,1338.8,22.4733]
[1673389248290,1.6671495,1339.0,1338.8,22.4733]
[1673389249131,3.89462488,1339.0,1338.8,22.4733]
[1673389249783,3.89462488,1339.0,1338.8,24.96809197]
[1673389252432,1.6671495,1339.0,1338.8,24.96809197]
[1673389252749,3.89462488,1339.0,1338.8,24.96809197]
[1673389253816,1.6671495,1339.0,1338.8,24.96809197]
[1673389255363,3.89462488,1339.0,1338.8,2.56079197]
[1673389255700,3.89462488,1339.0,1338.7,13.88029569]
[1673389256008,3.89462488,1339.0,1338.7,10.01042969]
[1673389256611,3.89462488,1339.0,1338.7,17.48035969]
[1673389257239,3.89462488,1339.0,1338.7,10.01042969]
[1673389257466,3.89462488,1339.0,1338.7,17.48035969]
[1673389257669,3.89462488,1339.0,1338.7,10.01042969]
[1673389258074,3.89462488,1339.0,1338.7,13.88029569]
[1673389258289,3.89462488,1339.0,1338.7,17.48035969]
[1673389259339,3.89462488,1339.0,1338.7,10.01042969]
[1673389260273,3.89462488,1339.0,1338.7,17.48035969]
[1673389260913,3.89462488,1339.0,1338.7,24.95028969]
[1673389261325,3.89462488,1339.0,1338.7,17.48035969]
[1673389261533,3.89462488,1339.0,1338.7,17.47790434]
[1673389262193,3.89462488,1339.0,1338.7,24.94783434]
[1673389262618,3.89462488,1339.0,1338.7,28.81770034]
[1673389263022,3.89462488,1339.0,1338.7,17.47790434]
[1673389263440,3.89462488,1339.0,1338.7,24.94783434]
[1673389264293,3.89462488,1339.0,1338.7,17.47790434]
[1673389265148,1.6671495,1338.9,1338.7,0.066]
[1673389265370,1.6671495,1338.9,1338.7,14.93983]
[1673389265526,1.6671495,1338.9,1338.7,15.00583]
[1673389269647,1.6671495,1338.9,1338.7,22.47576]
[1673389270111,1.6671495,1338.9,1338.7,26.345626]
[1673389270326,1.6671495,1338.9,1338.7,22.47576]
[1673389270490,1.6671495,1338.9,1338.7,26.41009202]
[1673389272293,3.89462488,1338.9,1338.7,26.41009202]
[1673389274430,3.89462488,1338.9,1338.7,29.19067672]
[1673389283001,1.6671495,1338.8,1338.7,29.19067672]
[1673389283271,1.6671495,1338.8,1338.7,31.04439664]
[1673389283272,1.67146331,1338.8,1338.7,31.04439664]
[1673389284836,3.34292603,1338.8,1338.7,31.04439664]
[1673389285860,1.67146331,1338.8,1338.7,31.04439664]
[1673389287109,3.34292603,1338.8,1338.7,31.04439664]
[1673389288098,1.67146331,1338.8,1338.7,31.04439664]
[1673389300555,1.67146331,1338.8,1338.7,32.16248086]
[1673389304161,1.67146331,1338.8,1338.7,31.04439664]
[1673389305392,1.67146331,1338.8,1338.7,32.16248086]
[1673389310129,1.67146331,1338.8,1338.7,31.04439664]
[1673389310327,1.67146331,1338.8,1338.7,32.16248086]
[1673389312695,1.67146331,1338.8,1338.7,31.04439664]
[1673389312854,1.67146331,1338.8,1338.7,27.11006462]
[1673389315580,1.67146331,1338.8,1338.7,28.22814884]
[1673389317416,1.67146331,1338.8,1338.7,27.11006462]
[1673389318853,1.67146331,1338.8,1338.7,4.70030462]
[1673389319063,1.67146331,1338.8,1338.7,1.85371992]
[1673389322337,3.34292603,1338.8,1338.7,1.85371992]
[1673389322772,3.34292603,1338.8,1338.6,27.17647892]
[1673389323103,3.34292603,1338.8,1338.7,1.85378393]
[1673389323319,3.34292603,1338.8,1338.6,8.65427422]
[1673389323485,4.76321577,1338.8,1338.6,1.18408422]
[1673389323693,4.76321577,1338.8,1338.6,8.58837422]
[1673389323929,4.76321577,1338.8,1338.6,16.12486422]
[1673389324470,4.76321577,1338.8,1338.6,15.00678]
[1673389325577,4.76321577,1338.8,1338.6,15.00346415]
[1673389326443,4.76321577,1338.8,1338.6,22.47395415]
[1673389326627,4.76321577,1338.8,1338.6,17.78404885]
[1673389326838,4.76321577,1338.8,1338.6,15.00346415]
[1673389327698,4.76321577,1338.8,1338.6,7.53297415]
[1673389328114,4.76321577,1338.8,1338.6,0.066]
[1673389328470,4.76321577,1338.8,1338.5,26.50154208]
[1673389328471,0.47632158,1338.7,1338.5,26.50154208]
[1673389328627,4.82731174,1338.8,1338.6,1.85385342]
[1673389328833,4.76321577,1338.8,1338.6,9.32417342]
[1673389329185,4.76321577,1338.8,1338.6,7.53632]
[1673389329831,4.76321577,1338.8,1338.6,15.00681]
[1673389330221,4.76321577,1338.8,1338.6,22.4773]
[1673389330956,3.09175305,1338.8,1338.6,22.4773]
[1673389331178,1.67146331,1338.8,1338.6,23.59538422]
[1673389331570,1.67146331,1338.8,1338.6,22.4773]
[1673389331993,1.67146331,1338.8,1338.7,1.85371983]
[1673389332203,1.67146331,1338.8,1338.7,9.32364983]
[1673389332414,1.67146331,1338.8,1338.7,24.32950983]
[1673389333050,1.67146331,1338.8,1338.7,22.47579]
[1673389334149,1.67146331,1338.8,1338.7,7.53593]
[1673389334372,3.09175305,1338.8,1338.7,0.066]
[1673389334522,3.09175305,1338.8,1338.7,7.46993]
[1673389334731,3.09175305,1338.8,1338.7,7.53593]
[1673389334995,3.09175305,1338.8,1338.7,15.00586]
[1673389335895,3.09175305,1338.8,1338.7,7.53593]
[1673389336472,4.76321577,1338.8,1338.7,7.53593]
[1673389337271,4.76321577,1338.8,1338.7,15.00586]
[1673389337560,3.34292603,1338.8,1338.7,7.53593]
[1673389338745,3.34292603,1338.8,1338.7,7.33593]
[1673389339328,3.34292603,1338.8,1338.7,0.066]
[1673389339549,3.34292603,1338.8,1338.6,15.00626]
[1673389339708,3.34292603,1338.8,1338.6,7.53602]
[1673389340217,3.34292603,1338.8,1338.6,15.00651]
[1673389340795,3.34292603,1338.8,1338.6,7.53602]
[1673389342629,3.34292603,1338.8,1338.6,0.066]
[1673389342844,3.34292603,1338.8,1338.5,22.60294316]
[1673389344113,3.34292603,1338.8,1338.6,1.85383829]
[1673389344327,3.34292603,1338.8,1338.7,14.93986]
[1673389344328,1.67146331,1338.8,1338.7,14.93986]
[1673389344575,1.67146331,1338.8,1338.7,15.00586]
[1673389345280,1.67146331,1338.8,1338.7,7.53593]
[1673389357457,3.34292603,1338.8,1338.7,7.53593]
[1673389357905,1.67146331,1338.8,1338.7,7.53593]
[1673389360632,1.67146331,1338.8,1338.7,0.066]
[1673389360842,1.67146331,1338.8,1338.6,23.59457422]
[1673389361278,3.34292603,1338.8,1338.6,22.47649]
[1673389361487,3.34292603,1338.8,1338.6,7.53607]
[1673389361678,3.34292603,1338.8,1338.6,0.066]
[1673389361890,3.34292603,1338.8,1338.6,7.47049]
[1673389362105,3.34292603,1338.8,1338.6,7.53649]
[1673389362648,3.34031007,1338.8,1338.6,7.53649]
[1673389363245,3.34031007,1338.8,1338.6,15.00698]
[1673389365146,5.0387621,1338.8,1338.6,15.00698]
[1673389365356,5.04885807,1338.8,1338.6,22.47747]
[1673389367046,19.04885807,1338.8,1338.6,22.47747]
[1673389367257,19.60935807,1338.8,1338.6,22.47747]
[1673389367449,1.96093581,1338.7,1338.6,22.47747]
[1673389367659,19.66335807,1338.8,1338.6,24.33126817]
[1673389367887,19.60935807,1338.8,1338.6,22.47747]
[1673389369441,19.60935807,1338.8,1338.6,23.59555422]
[1673389369922,19.60935807,1338.8,1338.6,22.47747]
[1673389370080,19.60935807,1338.8,1338.6,15.00698]
[1673389370618,19.60935807,1338.8,1338.6,0.066]
[1673389370619,1.96093581,1338.7,1338.6,0.066]
[1673389370809,1.96093581,1338.7,1338.6,1.85382936]
[1673389371021,1.96093581,1338.7,1338.5,8.77963738]
[1673389371232,3.63239853,1338.7,1338.5,1.30900738]
[1673389371492,3.63239853,1338.7,1338.5,8.71404738]
[1673389371706,3.63239853,1338.7,1338.5,8.78004738]
[1673389372438,3.63239853,1338.7,1338.5,7.66196316]
[1673389373697,3.63239853,1338.7,1338.5,8.78004738]
[1673389374556,3.63239853,1338.7,1338.5,7.66196316]
[1673389374715,3.63239853,1338.7,1338.5,0.19092316]
[1673389374931,0.36323985,1338.6,1338.5,0.12492316]
[1673389375174,1e-08,1338.6,1338.5,1.97887006]
[1673389375356,7.47049001,1338.6,1338.5,0.12492316]
[1673389375556,0.00809598,1338.6,1338.5,0.12492316]
[1673389375765,1e-08,1338.6,1338.5,0.12492316]
[1673389377478,7.47049001,1338.6,1338.5,0.12492316]
[1673389377657,0.00809598,1338.6,1338.5,0.12492316]
[1673389377868,1e-08,1338.6,1338.5,0.12492316]
[1673389383910,1e-08,1338.6,1338.5,0.20230316]
[1673389388313,14.56060001,1338.6,1338.5,0.20230316]
[1673389388488,14.00809598,1338.6,1338.5,0.20230316]
[1673389390523,14.00809598,1338.6,1338.5,15.14438316]
[1673389390743,17.00809598,1338.6,1338.5,7.73934316]
[1673389391043,17.00809598,1338.6,1338.5,0.26830316]
[1673389391266,17.00809598,1338.6,1338.5,0.20230316]
[1673389391910,17.00809598,1338.6,1338.5,15.14438316]
[1673389392118,17.00809598,1338.6,1338.5,15.21038316]
[1673389393197,17.00809598,1338.6,1338.5,7.73934316]
[1673389393902,17.00809598,1338.6,1338.5,0.26830316]
[1673389394084,17.00809598,1338.6,1338.5,0.20230316]
[1673389396031,17.00809598,1338.6,1338.5,0.20007037]
[1673389406787,3.00809598,1338.6,1338.5,0.20007037]
[1673389406935,17.00000001,1338.6,1338.5,0.20007037]
[1673389407144,17.00809598,1338.6,1338.5,0.20007037]
[1673389408198,14.00809598,1338.6,1338.5,0.20007037]
[1673389410561,14.00809598,1338.6,1338.5,2.05408858]
[1673389415021,1.52058739,1338.6,1338.5,2.05408858]
[1673389415232,15.21587391,1338.7,1338.5,2.05408858]
[1673389415594,18.94753455,1338.7,1338.5,0.20007037]
[1673389416442,26.41748455,1338.7,1338.5,0.20007037]
[1673389416810,1.67146272,1338.6,1338.5,0.20007037]
[1673389424475,19.46912336,1338.6,1338.5,0.20007037]
[1673389424684,30.98796182,1338.6,1338.5,0.20007037]
[1673389424897,31.21796182,1338.6,1338.5,0.20007037]
[1673389426406,23.74747182,1338.6,1338.5,0.20007037]
[1673389434499,23.74747182,1338.6,1338.5,2.05414026]
[1673389434667,24.30348448,1338.6,1338.5,0.20007037]
[1673389435329,20.25513602,1338.6,1338.5,0.20007037]
[1673389436143,18.12744067,1338.6,1338.5,0.20007037]
[1673389436393,17.89744067,1338.6,1338.5,0.20007037]
[1673389437303,15.66996529,1338.6,1338.5,0.20007037]
[1673389437954,15.66996529,1338.6,1338.5,2.05413683]
[1673389438139,15.66996529,1338.6,1338.5,2.05078162]
[1673389438924,14.0,1338.6,1338.5,2.05078162]
[1673389439116,15.66996529,1338.6,1338.5,2.05078162]
[1673389439941,37.84179191,1338.6,1338.5,0.19671516]
[1673389440180,28.14382653,1338.6,1338.5,0.19671516]
[1673389440342,24.28424359,1338.6,1338.5,0.19671516]
[1673389440554,31.75473359,1338.6,1338.5,0.19671516]
[1673389440975,33.98044822,1338.6,1338.5,0.19671516]
[1673389441229,24.28424359,1338.6,1338.5,0.19671516]
[1673389441393,26.50997079,1338.6,1338.5,0.19671516]
[1673389444467,23.72573191,1338.6,1338.5,0.19671516]
[1673389446697,42.52829249,1338.6,1338.5,0.19671516]
[1673389446887,59.89509303,1338.6,1338.5,0.19671516]
[1673389447805,64.89509303,1338.6,1338.5,0.19671516]
[1673389448022,64.89709303,1338.6,1338.5,0.19671516]
[1673389448342,64.89509303,1338.6,1338.5,0.19671516]
[1673389449416,61.5597743,1338.6,1338.5,0.19671516]
[1673389451854,64.33617436,1338.6,1338.5,0.19671516]
[1673389452250,56.86568436,1338.6,1338.5,0.19671516]
[1673389452463,64.33617436,1338.6,1338.5,0.19671516]
[1673389453615,49.39519436,1338.6,1338.5,0.19671516]
[1673389453832,64.33617436,1338.6,1338.5,0.19671516]
[1673389457282,66.55640189,1338.6,1338.5,0.19671516]
[1673389457498,64.33617436,1338.6,1338.5,0.19671516]
[1673389460109,64.33617436,1338.6,1338.5,0.19279983]
[1673389461946,66.55544518,1338.6,1338.5,0.19279983]
[1673389462099,64.33617436,1338.6,1338.5,0.19279983]
[1673389464125,62.69367119,1338.6,1338.5,0.19279983]
[1673389464348,55.22318119,1338.6,1338.5,0.19279983]
[1673389464532,62.69367119,1338.6,1338.5,0.19279983]
[1673389464848,40.50229113,1338.6,1338.5,0.19279983]
[1673389465271,30.43330106,1338.6,1338.5,0.19279983]
[1673389465460,49.87357464,1338.6,1338.5,0.19279983]
[1673389465903,27.46210464,1338.6,1338.5,0.19279983]
[1673389466556,22.46210464,1338.6,1338.5,0.19279983]
[1673389467661,23.21422365,1338.6,1338.5,0.19279983]
[1673389468234,30.91471365,1338.6,1338.5,0.19279983]
[1673389469150,23.44422365,1338.6,1338.5,0.19279983]
[1673389469366,21.54977965,1338.6,1338.5,0.19279983]
[1673389469591,18.54977965,1338.6,1338.5,0.19279983]
[1673389471916,20.21422365,1338.6,1338.5,0.19279983]
[1673389472233,6.21422365,1338.6,1338.5,0.19279983]
[1673389478534,2.41656301,1338.6,1338.5,0.19279983]
[1673389479599,1.664444,1338.6,1338.5,0.19279983]
[1673389485812,2.41656301,1338.6,1338.5,0.19279983]
[1673389495588,2.41656301,1338.6,1338.5,1.72846072]
[1673389495889,2.28507741,1338.7,1338.6,1.11241149]
[1673389495890,0.066,1338.7,1338.6,1.11241149]
[1673389496111,15.730444,1338.9,1338.6,23.74618864]
[1673389496314,15.730444,1338.9,1338.7,2.37461886]
[1673389496315,15.668444,1338.9,1338.7,2.37461886]
[1673389496626,0.002,1338.9,1338.8,22.40811]
[1673389496792,4.50792141,1339.0,1338.8,22.47411]
[1673389496793,4.44392141,1339.0,1338.8,22.47411]
[1673389497211,3.88352141,1339.0,1338.8,15.00474]
[1673389497470,1.664444,1339.0,1338.8,7.53537]
[1673389497791,4.664444,1339.0,1338.9,15.691157]
[1673389497937,4.664444,1339.0,1338.9,15.757157]
[1673389498879,4.664444,1339.0,1338.9,23.225967]
[1673389499305,3.0,1339.0,1338.9,0.819537]
[1673389499523,3.0,1339.0,1338.7,24.84995886]
[1673389499772,3.0,1339.0,1338.7,28.71153944]
[1673389499932,4.664444,1339.0,1338.7,28.71153944]
[1673389501193,14.0,1338.9,1338.7,28.71153944]
[1673389501403,14.002,1338.9,1338.8,2.87115394]
[1673389502039,14.004,1338.9,1338.8,2.87115394]
[1673389502248,0.002,1338.9,1338.8,10.34052394]
[1673389502484,5.226844,1339.0,1338.8,17.87589394]
[1673389502677,5.226844,1339.0,1338.8,15.00474]
[1673389503264,5.226844,1339.0,1338.8,7.53537]
[1673389503421,5.226844,1339.0,1338.8,15.00474]
[1673389504083,5.226844,1339.0,1338.8,7.53537]
[1673389504265,5.226844,1339.0,1338.8,0.066]
[1673389504626,5.226844,1339.0,1338.8,14.93869]
[1673389504791,5.226844,1339.0,1338.8,15.00469]
[1673389506096,5.226844,1339.0,1338.8,0.066]
[1673389506408,3.5624,1339.0,1338.7,21.24129944]
[1673389506654,3.5624,1339.0,1338.8,2.12412994]
[1673389506940,3.5604,1339.0,1338.7,24.84929886]
[1673389507260,3.5604,1339.0,1338.7,28.71087944]
[1673389507466,3.0,1339.0,1338.7,28.71122944]
[1673389509517,14.0,1338.9,1338.7,13.77171944]
[1673389509880,14.002,1338.9,1338.7,9.91013886]
[1673389510260,14.002,1338.9,1338.7,17.38006886]
[1673389511457,0.002,1338.9,1338.7,17.38006886]
[1673389511625,1.664444,1339.0,1338.8,1.73800689]
[1673389511833,1.664444,1339.0,1338.8,7.46911]
[1673389512168,1.664444,1339.0,1338.8,7.53511]
[1673389512380,1.664444,1339.0,1338.8,15.00448]
[1673389514240,18.50992141,1339.1,1338.8,15.00448]
[1673389514497,18.44592141,1339.1,1338.8,15.00448]
[1673389514706,1.664444,1339.0,1338.8,15.00448]
[1673389515024,1.664444,1339.0,1338.8,17.48934189]
[1673389515394,18.50992141,1339.1,1338.8,17.48934189]
[1673389515639,18.44592141,1339.1,1338.8,15.00448]
[1673389517826,18.44792141,1339.1,1338.8,15.00248]
[1673389518031,18.44592141,1339.1,1338.8,15.00448]
[1673389519276,18.44592141,1339.1,1338.8,15.00244171]
[1673389519599,4.44592141,1339.1,1338.8,22.47181171]
[1673389519810,4.44392141,1339.1,1338.8,24.95645477]
[1673389520495,4.44392141,1339.1,1338.8,17.48708477]
[1673389521091,18.44392141,1339.1,1338.8,17.48708477]
[1673389521284,18.44592141,1339.1,1338.8,15.00244171]
[1673389521787,1.664444,1339.0,1338.8,15.00244171]
[1673389521962,18.50992141,1339.1,1338.8,15.00244171]
[1673389522131,16.226844,1339.1,1338.8,15.00244171]
[1673389522570,16.226844,1339.1,1338.8,26.33339229]
[1673389522760,2.226844,1339.1,1338.8,26.08959683]
[1673389523125,2.224844,1339.1,1338.8,26.08959683]
[1673389523951,2.224844,1339.1,1338.8,29.95117741]
[1673389525934,1.664444,1339.1,1338.8,29.95117741]
[1673389526343,1.664444,1339.1,1338.8,26.08959683]
[1673389526547,1.664444,1339.1,1338.9,2.60895968]
[1673389526796,1.664444,1339.1,1338.9,10.07748968]
[1673389527006,1.664444,1339.1,1338.9,10.14348968]
[1673389527648,3.88352141,1339.1,1338.9,10.14348968]
[1673389527964,3.88352141,1339.1,1338.9,15.00334]
[1673389527965,17.88352141,1339.1,1338.9,15.00334]
[1673389528280,17.88552141,1339.1,1338.9,15.00334]
[1673389530807,17.88552141,1339.1,1338.9,22.47215]
[1673389532483,3.88552141,1339.1,1338.9,22.47215]
[1673389532656,3.88352141,1339.1,1338.9,22.47215]
[1673389532870,3.88352141,1339.1,1338.9,25.46607217]
[1673389533538,3.88352141,1339.1,1338.9,17.99726217]
[1673389533539,1.664444,1339.0,1338.9,17.99726217]
[1673389534860,1.664444,1339.0,1338.9,10.52845217]
[1673389535321,2.21907741,1339.0,1338.9,10.52845217]
[1673389535530,12.46372747,1339.0,1338.9,0.066]
[1673389535734,12.46572747,1339.0,1338.7,6.30219944]
[1673389535898,1.6701259,1338.9,1338.7,9.08265539]
[1673389536111,1.6701259,1338.9,1338.7,5.22107481]
[1673389536475,1.6701259,1338.9,1338.7,9.08265539]
[1673389536911,1.6701259,1338.9,1338.7,5.22107481]
[1673389537509,1.6701259,1338.9,1338.7,2.44061886]
[1673389537845,1.6701259,1338.9,1338.7,2.37461886]
[1673389538231,3.88920331,1338.9,1338.6,29.10985129]
[1673389538448,3.88920331,1338.9,1338.7,1.85373876]
[1673389538771,3.88920331,1338.9,1338.7,9.32358876]
[1673389538966,3.88920331,1338.9,1338.7,7.53585]
[1673389539176,3.88920331,1338.9,1338.7,15.00578]
[1673389539419,1.6701259,1338.9,1338.7,15.00578]
[1673389540042,3.88920331,1338.9,1338.7,15.00296561]
[1673389540818,1.6701259,1338.9,1338.7,15.00296561]
[1673389542383,1.6701259,1338.9,1338.7,22.47289561]
[1673389545272,1.6701259,1338.9,1338.7,26.35268705]
[1673389548183,1.6701259,1338.9,1338.7,26.30268705]
[1673389549343,1.6701259,1338.9,1338.7,30.16426763]
[1673389549491,1.6701259,1338.9,1338.7,32.94488774]
[1673389557202,1.6701259,1338.9,1338.7,36.74254838]
[1673389557417,1.6701259,1338.9,1338.8,5.52788158]
[1673389557658,1.6701259,1338.9,1338.8,28.00199835]
[1673389558043,1.6701259,1338.9,1338.8,26.14836484]
[1673389559462,1.6701259,1338.9,1338.8,28.00199767]
[1673389560192,1.6701259,1338.9,1338.8,26.14836484]
[1673389561145,1.6701259,1338.9,1338.8,22.47411]
[1673389561305,1.6701259,1338.9,1338.8,15.00474]
[1673389561515,1.6701259,1338.9,1338.8,22.47411]
[1673389563968,1.6701259,1338.9,1338.8,15.00474]
[1673389565872,3.88920331,1338.9,1338.8,15.00474]
[1673389566610,1.6701259,1338.9,1338.8,15.00474]
[1673389571576,1.6701259,1338.9,1338.8,22.47411]
[1673389578356,1.66778154,1338.9,1338.8,22.47411]
[1673389582992,1.66778154,1338.9,1338.8,7.53537]
[1673389583216,1.66778154,1338.9,1338.8,0.066]
[1673389583425,1.66778154,1338.9,1338.7,8.65349422]
[1673389584119,1.66778154,1338.9,1338.7,1.18408422]
[1673389584333,2.21907741,1338.9,1338.6,26.56314362]
[1673389584554,2.21907741,1338.9,1338.7,4.51006511]
[1673389584803,2.21907741,1338.9,1338.7,2.65631436]
[1673389586998,2.21907741,1338.9,1338.7,10.12617436]
[1673389587190,2.21907741,1338.9,1338.7,10.19217436]
[1673389587405,3.88957862,1338.9,1338.7,10.19217436]
[1673389588381,3.88957862,1338.9,1338.7,17.66210436]
[1673389588592,3.88957862,1338.9,1338.7,25.13203436]
[1673389598059,1.67050121,1338.9,1338.7,25.13203436]
[1673389599816,3.88957862,1338.9,1338.7,0.066]
[1673389600157,3.88957862,1338.9,1338.6,0.066]
[1673389600158,1.67050121,1338.8,1338.6,0.066]
[1673389600370,2.23100121,1338.8,1338.6,15.00298]
[1673389600684,4.45007862,1338.8,1338.6,22.47747]
[1673389600925,6.26703839,1338.8,1338.6,0.066]
[1673389601076,6.26903839,1338.8,1338.5,1.37460806]
[1673389601295,4.04796098,1338.8,1338.6,1.85387761]
[1673389601927,6.26703839,1338.8,1338.6,1.85387761]
[1673389602137,6.26903839,1338.8,1338.6,1.85387761]
[1673389602328,0.62690384,1338.7,1338.6,1.85387761]
[1673389602683,0.62690384,1338.7,1338.6,1.85118851]
[1673389602875,0.62690384,1338.7,1338.5,1.37460806]
[1673389603089,0.62690384,1338.7,1338.5,1.30860806]
[1673389603954,2.29740505,1338.7,1338.5,0.19052384]
[1673389604255,0.22974051,1338.6,1338.5,0.19052384]
[1673389604479,2.29740505,1338.7,1338.5,0.19052384]
[1673389606885,6.09506569,1338.7,1338.5,0.19052384]
[1673389609549,4.42456448,1338.7,1338.5,0.19052384]
[1673389613024,0.62690384,1338.7,1338.5,0.19052384]
[1673389613235,28.75323839,1338.8,1338.5,15.13246384]
[1673389613387,32.53689903,1338.8,1338.5,15.19846384]
[1673389613598,32.48689903,1338.8,1338.5,15.19846384]
[1673389614381,30.26782162,1338.8,1338.5,15.19846384]
[1673389616487,26.47016098,1338.8,1338.5,15.19846384]
[1673389616665,26.47216098,1338.8,1338.5,22.66750384]
[1673389616880,2.6472161,1338.7,1338.5,22.66950384]
[1673389617297,2.6472161,1338.7,1338.5,0.25652384]
[1673389617643,2.6472161,1338.7,1338.5,0.19052384]
[1673389618219,6.44487674,1338.7,1338.5,0.19052384]
[1673389618435,0.64448767,1338.6,1338.5,0.19052384]
[1673389618664,1.20508767,1338.6,1338.5,0.19052384]
[1673389618900,0.64448767,1338.6,1338.5,0.19052384]
[1673389621600,23.34264952,1338.6,1338.5,0.19052384]
[1673389621812,23.90324952,1338.6,1338.5,0.19052384]
[1673389622032,26.12232693,1338.6,1338.5,0.19052384]
[1673389622250,39.51842948,1338.6,1338.5,0.19052384]
[1673389622428,36.74202942,1338.6,1338.5,0.19052384]
[1673389622636,38.40751903,1338.6,1338.5,0.19052384]
[1673389623211,32.98502572,1338.6,1338.5,0.19052384]
[1673389623654,34.65063819,1338.6,1338.5,0.19052384]
[1673389624076,32.43156078,1338.6,1338.5,0.19052384]